bitfinex-derivatives/quotes_BNBF0:USTF0_20251219
["timestamp","ask_amount","ask_price","bid_price","bid_amount"]
[1766126378041,1.19178829,840.12,839.01,1.18631226]
[1766126379243,1.19178829,840.12,839.0,1.18631226]
[1766126379440,1.19178829,840.11,839.0,1.18631226]
[1766126379643,1.19178829,840.1,839.0,1.18631226]
[1766126379844,2.08018483,840.09,838.96,1.18631226]
[1766126380144,1.19178829,840.08,838.96,1.18631226]
[1766126380344,1.19178829,840.08,838.95,1.18631226]
[1766126380741,0.88839654,840.07,838.94,3.117]
[1766126381045,0.88839654,839.98,838.94,3.117]
[1766126381239,1.19178829,839.97,838.94,3.117]
[1766126381443,1.19178829,839.96,838.94,3.117]
[1766126381740,1.19178829,839.95,838.94,3.117]
[1766126381941,1.19178829,839.94,838.94,3.117]
[1766126382142,1.19178829,839.93,838.94,3.117]
[1766126382441,0.88839654,840.0,838.94,3.117]
[1766126382642,1.19202002,839.99,838.94,3.117]
[1766126382945,1.19202002,839.98,838.94,3.117]
[1766126383242,1.19202002,839.97,838.94,3.117]
[1766126383445,1.19202002,839.96,838.94,3.117]
[1766126383640,0.88839654,840.02,838.94,3.117]
[1766126383941,1.19200721,840.01,838.94,3.117]
[1766126385346,1.19200721,840.0,838.94,3.117]
[1766126385546,1.19200721,839.99,838.94,3.117]
[1766126385745,1.19200721,839.98,838.94,3.117]
[1766126385947,0.88839654,840.03,838.94,3.117]
[1766126386344,0.88839654,840.11,838.94,3.117]
[1766126386544,1.19189792,840.1,838.94,3.117]
[1766126387444,1.19189792,840.09,838.94,3.117]
[1766126387744,1.19189792,840.08,838.94,3.117]
[1766126387945,1.19189792,840.07,838.94,3.117]
[1766126388246,1.19189792,840.06,838.94,3.117]
[1766126388445,0.88839654,840.12,838.94,3.117]
[1766126388650,1.19189792,840.11,838.94,3.117]
[1766126389250,1.19189801,840.1,838.94,3.117]
[1766126389451,1.19189801,840.09,838.94,3.117]
[1766126389649,1.19189801,840.08,838.94,3.117]
[1766126389847,1.19189801,840.07,838.94,3.117]
[1766126390146,0.88839654,840.12,838.94,3.117]
[1766126390349,1.19189801,840.11,838.94,3.117]
[1766126391346,1.19189801,840.1,838.94,3.117]
[1766126391548,1.19189801,840.09,838.94,3.117]
[1766126391745,1.19189801,840.08,838.94,3.117]
[1766126391946,1.19189801,840.07,838.94,3.117]
[1766126392146,0.88839654,840.13,838.94,3.117]
[1766126392348,1.19189801,840.12,838.94,3.117]
[1766126396950,2.08029455,840.12,838.94,3.117]
[1766126397255,1.19189801,840.11,838.94,3.117]
[1766126400654,1.19189801,840.11,838.9,8.89056527]
[1766126401358,2.08029455,840.11,838.9,8.89056527]
[1766126401653,1.19189801,840.1,838.9,8.89056527]
[1766126402352,2.08029455,840.1,838.9,8.89056527]
[1766126402657,1.19189801,840.09,838.9,8.89056527]
[1766126403158,2.08029455,840.09,838.9,8.89056527]
[1766126403356,1.19189801,840.08,838.9,8.89056527]
[1766126404354,2.08029455,840.08,838.9,8.89056527]
[1766126404559,1.19189801,840.07,838.91,4.167]
[1766126404758,0.88839654,840.08,838.91,4.167]
[1766126404958,0.88839654,840.14,838.95,1.18631226]
[1766126405154,1.19181981,840.13,838.95,1.18631226]
[1766126405357,2.08021635,840.13,838.96,1.18631226]
[1766126405555,1.19181981,840.12,838.96,1.18631226]
[1766126406260,2.08021635,840.12,838.96,1.18631226]
[1766126406459,1.19181981,840.11,838.97,1.18631226]
[1766126408163,2.08021635,840.11,838.97,1.18631226]
[1766126408363,1.19181981,840.1,838.97,1.18631226]
[1766126408562,1.19181981,840.1,838.98,1.18631226]
[1766126408763,1.19181981,840.09,838.98,1.18631226]
[1766126408965,1.19181981,840.08,838.98,1.18631226]
[1766126409159,1.19181981,840.07,838.98,1.18631226]
[1766126409359,0.88839654,840.12,838.99,1.18631226]
[1766126409563,1.19173654,840.11,838.99,1.18631226]
[1766126409859,0.88839654,840.17,839.04,1.18631226]
[1766126410160,1.19173654,840.16,839.04,1.18631226]
[1766126410359,2.08013308,840.16,839.04,1.18631226]
[1766126410560,1.19173654,840.15,839.04,1.18631226]
[1766126411165,1.19173654,840.15,839.05,1.18631226]
[1766126411961,0.88839654,840.09,838.98,1.18631226]
[1766126412162,2.08013308,840.08,838.98,1.18631226]
[1766126412366,0.88839654,840.02,838.92,1.18631226]
[1766126412561,1.19173654,840.01,838.92,1.18631226]
[1766126413166,1.19173654,840.01,838.95,1.18631226]
[1766126413363,1.19173654,840.0,838.96,1.18631226]
[1766126413562,1.19173654,839.99,838.96,1.18631226]
[1766126413764,0.88839654,840.05,838.96,1.18631226]
[1766126413970,1.19187827,840.04,838.96,1.18631226]
[1766126415866,0.88839654,840.11,839.02,1.18631226]
[1766126416070,1.19178787,840.1,839.02,1.18631226]
[1766126417367,0.88839654,840.09,839.01,1.18631226]
[1766126417565,1.19178787,840.08,839.01,1.18631226]
[1766126418266,2.08018441,840.08,839.01,1.18631226]
[1766126418469,1.19178787,840.07,839.01,1.18631226]
[1766126419167,1.19178787,840.07,839.02,1.18631226]
[1766126420370,2.08018441,840.07,839.02,1.18631226]
[1766126420570,0.88839654,840.01,838.96,1.18631226]
[1766126420771,1.19178787,840.0,838.96,1.18631226]
[1766126420971,0.88839654,839.99,838.94,1.18631226]
[1766126421172,1.19178787,839.98,838.94,1.18631226]
[1766126421974,1.19178787,839.98,838.96,1.18631226]
[1766126422169,1.19178787,839.97,838.96,1.18631226]
[1766126422373,1.19178787,839.96,838.96,1.18631226]
[1766126422571,1.19178787,839.95,838.96,1.18631226]
[1766126422775,0.88839654,840.0,838.96,1.18631226]
[1766126422975,1.19190386,839.99,838.96,1.18631226]
[1766126423377,1.19190386,839.99,839.01,1.18631226]
[1766126423673,0.88839654,840.05,839.01,1.18631226]
[1766126423873,1.19183979,840.04,839.01,1.18631226]
[1766126424178,2.08023633,840.04,839.02,1.18631226]
[1766126424373,1.19183979,840.03,839.02,1.18631226]
[1766126426277,2.08023633,840.03,839.03,1.18631226]
[1766126426477,1.19183979,840.02,839.03,1.18631226]
[1766126428281,0.88839654,840.01,839.02,1.18631226]
[1766126428583,1.19183979,840.0,839.02,1.18631226]
[1766126429783,1.19186498,839.99,839.02,1.18631226]
[1766126429984,1.19186498,839.98,839.02,1.18631226]
[1766126430182,1.19186498,839.97,839.02,1.18631226]
[1766126430380,1.19186498,839.96,839.02,1.18631226]
[1766126430681,1.19186498,839.95,839.02,1.18631226]
[1766126430886,0.88839654,840.0,839.02,1.18631226]
[1766126431183,1.19186485,839.99,839.02,1.18631226]
[1766126431379,1.19186485,839.99,839.03,1.18631226]
[1766126437186,2.08026139,839.99,839.03,1.18631226]
[1766126437386,1.19186485,839.98,839.03,1.18631226]
[1766126438782,1.19186485,839.98,839.05,1.18631226]
[1766126438987,1.19186485,839.97,839.05,1.18631226]
[1766126439184,0.88839654,840.03,839.07,1.18631226]
[1766126439483,1.19180702,840.02,839.07,1.18631226]
[1766126439688,0.88839654,840.12,839.15,1.18631226]
[1766126439889,1.19169087,840.11,839.16,1.18631226]
[1766126440589,1.19169087,840.1,839.16,1.18631226]
[1766126440786,1.19169087,840.09,839.16,1.18631226]
[1766126440989,1.19169087,840.08,839.16,1.18631226]
[1766126441188,0.88839654,840.13,839.16,1.18631226]
[1766126441389,1.19167103,840.12,839.16,1.18631226]
[1766126441689,1.19167103,840.11,839.16,1.18631226]
[1766126441889,1.19167103,840.1,839.16,1.18631226]
[1766126442085,1.19167103,840.09,839.16,1.18631226]
[1766126442289,0.88839654,840.14,839.16,1.18631226]
[1766126442490,1.1916709,840.13,839.16,1.18631226]
[1766126443086,1.1916709,840.13,839.17,1.18631226]
[1766126443284,1.1916709,840.12,839.17,4.99731226]
[1766126443485,1.1916709,840.11,839.17,3.811]
[1766126443689,1.1916709,840.1,839.17,3.811]
[1766126443885,0.88839654,840.15,839.17,3.811]
[1766126444185,1.19165813,840.14,839.2,1.18631226]
[1766126444391,0.88839654,840.19,839.19,1.18631226]
[1766126444684,1.1916069,840.18,839.19,1.18631226]
[1766126446589,1.1916069,840.17,839.19,1.18631226]
[1766126446786,1.1916069,840.16,839.19,1.18631226]
[1766126447085,1.1916069,840.15,839.19,1.18631226]
[1766126447290,0.88839654,840.2,839.19,1.18631226]
[1766126447489,1.19160694,840.19,839.18,1.18631226]
[1766126447688,1.19160694,840.18,839.18,1.18631226]
[1766126447884,13.11250838,840.22,839.2,1.18631226]
[1766126448088,13.11250838,840.22,839.17,3.811]
[1766126448089,1.19157429,840.21,839.22,1.18631226]
[1766126448391,1.19157429,840.21,839.21,1.18631226]
[1766126449489,13.11250838,840.22,839.24,1.18631226]
[1766126450388,13.11250838,840.22,839.23,1.18631226]
[1766126451587,13.11250838,840.22,839.29,1.18631226]
[1766126451990,13.11250838,840.22,839.3,1.18631226]
[1766126452292,13.11250838,840.22,839.28,1.18631226]
[1766126453397,13.11250838,840.22,839.27,1.18631226]
[1766126455295,13.11250838,840.22,839.26,1.18631226]
[1766126456300,13.11250838,840.22,839.25,1.18631226]
[1766126457499,13.11250838,840.22,839.24,1.18631226]
[1766126458300,13.11250838,840.22,839.23,1.18631226]
[1766126459297,13.11250838,840.22,839.22,1.18631226]
[1766126459500,13.11250838,840.22,839.19,1.18631226]
[1766126460504,13.11250838,840.22,839.2,4.051]
[1766126462802,0.20716937,840.22,839.2,4.051]
[1766126467612,0.20716937,840.22,839.25,1.18631226]
[1766126469312,0.20716937,840.22,839.24,1.18631226]
[1766126471416,0.20716937,840.22,839.2,4.051]
[1766126471417,0.20716937,840.22,839.21,1.18631226]
[1766126471619,0.20716937,840.22,839.2,4.051]
[1766126485628,0.20716937,840.22,839.27,1.18631226]
[1766126486429,0.20716937,840.22,839.32,1.18631226]
[1766126490436,0.20716937,840.22,839.33,1.18631226]
[1766126491631,0.20716937,840.22,839.36,1.18631226]
[1766126492033,0.20716937,840.22,839.37,1.18631226]
[1766126493133,0.20716937,840.22,839.36,1.18631226]
[1766126493534,0.20716937,840.22,839.37,1.18631226]
[1766126494037,0.20716937,840.22,839.41,1.18631226]
[1766126494238,0.20716937,840.22,839.46,1.18631226]
[1766126494838,0.20716937,840.22,839.48,1.18631226]
[1766126496235,0.20716937,840.22,839.47,1.18631226]
[1766126500443,0.20716937,840.22,839.48,4.348]
[1766126517249,0.20716937,840.22,839.43,1.18631226]
[1766126520156,0.20716937,840.22,839.44,3.67]
[1766126534160,0.20716937,840.22,839.44,4.85631226]
[1766126536167,0.20716937,840.22,839.45,1.18631226]
[1766126536466,0.20716937,840.22,839.44,3.67]
[1766126536467,0.20716937,840.22,839.46,1.18631226]
[1766126536667,0.20716937,840.22,839.5,1.18631226]
[1766126537366,0.20716937,840.22,839.56,1.18631226]
[1766126538262,0.20716937,840.22,839.57,1.18631226]
[1766126538661,0.20716937,840.22,839.61,1.18631226]
[1766126539265,0.20716937,840.22,839.62,1.18631226]
[1766126539464,0.20716937,840.22,839.61,1.18631226]
[1766126540269,0.20716937,840.22,839.56,1.18631226]
[1766126541168,0.20716937,840.22,839.51,1.18631226]
[1766126542165,0.20716937,840.22,839.52,1.18631226]
[1766126543171,0.20716937,840.22,839.53,1.18631226]
[1766126544176,0.20716937,840.22,839.54,1.18631226]
[1766126545372,0.20716937,840.22,839.56,1.18631226]
[1766126546675,0.20716937,840.22,839.55,1.18631226]
[1766126547277,0.20716937,840.22,839.56,1.18631226]
[1766126549275,0.20716937,840.22,839.44,3.67]
[1766126549276,0.20716937,840.22,839.57,1.18631226]
[1766126550375,0.20716937,840.22,839.61,1.18631226]
[1766126551375,0.20716937,840.22,839.62,1.18631226]
[1766126553176,0.20716937,840.22,839.63,1.18631226]
[1766126558382,0.20716937,840.22,839.67,1.18631226]
[1766126561184,0.20716937,840.22,839.66,1.18631226]
[1766126562388,0.20716937,840.22,839.67,1.18631226]
[1766126565384,0.20716937,840.22,839.66,1.18631226]
[1766126565588,1.19096037,840.61,839.67,1.18631226]
[1766126565888,0.20710772,840.33,839.67,1.18631226]
[1766126566487,0.20710772,840.33,839.7,1.18631226]
[1766126566784,0.20710772,840.33,839.71,1.18631226]
[1766126569388,0.20710772,840.33,839.7,1.18631226]
[1766126570492,0.20710772,840.33,839.71,1.18631226]
[1766126571789,0.20710772,840.33,839.72,1.18631226]
[1766126572191,0.20710772,840.33,839.73,1.18631226]
[1766126574896,0.20710772,840.33,839.74,1.18631226]
[1766126575293,0.20710772,840.33,839.73,1.18631226]
[1766126577292,0.20710772,840.33,839.72,1.18631226]
[1766126580500,0.20710772,840.33,839.73,3.267]
[1766126581196,0.20710772,840.33,839.73,4.45331226]
[1766126581602,0.20710772,840.33,839.73,3.267]
[1766126582102,0.20710772,840.33,839.73,4.45331226]
[1766126583501,0.20710772,840.33,839.74,1.18631226]
[1766126590301,0.20710772,840.33,839.73,4.45331226]
[1766126591308,0.20710772,840.33,839.74,1.18631226]
[1766126591603,0.20710772,840.33,839.73,4.45331226]
[1766126593509,0.20710772,840.33,839.73,3.267]
[1766126614520,0.20710772,840.33,839.71,1.18631226]
[1766126617320,0.20710772,840.33,839.72,1.18631226]
[1766126617521,0.20710772,840.33,839.72,4.18331226]
[1766126620322,0.20710772,840.33,839.73,1.18631226]
[1766126622225,0.20710772,840.33,839.74,1.18631226]
[1766126623825,0.20710772,840.33,839.78,1.18631226]
[1766126625524,0.20710772,840.33,839.84,1.18631226]
[1766126630335,0.20710772,840.33,839.8,1.18631226]
[1766126632734,0.20710772,840.33,839.79,1.18631226]
[1766126638739,0.20710772,840.33,839.8,3.866]
[1766126652458,0.20710772,840.33,839.8,5.05231226]
[1766126663365,0.20710772,840.33,839.8,3.866]
[1766126665871,0.20710772,840.33,839.76,1.18631226]
[1766126669572,0.20710772,840.33,839.77,4.16231226]
[1766126673175,0.20710772,840.33,839.81,1.18631226]
[1766126675972,0.89207395,840.78,839.85,1.18631226]
[1766126676173,0.20707506,840.48,839.85,1.18631226]
[1766126676374,8.98011567,840.48,839.94,1.18631226]
[1766126676577,8.77304061,840.48,839.95,1.18631226]
[1766126677078,8.77304061,840.48,840.01,1.18631226]
[1766126677374,8.77304061,840.48,840.03,1.18631226]
[1766126678476,8.77304061,840.48,840.08,1.18631226]
[1766126679579,8.77304061,840.48,840.06,1.18631226]
[1766126680381,8.77304061,840.48,840.04,1.18631226]
[1766126681382,8.77304061,840.48,840.03,1.18631226]
[1766126682481,0.20705166,840.68,840.02,1.18631226]
[1766126683381,0.20705166,840.68,840.01,1.18631226]
[1766126684081,0.20705166,840.68,840.02,1.18631226]
[1766126684481,0.20705166,840.68,840.01,1.18631226]
[1766126685483,0.20705166,840.68,840.0,1.18631226]
[1766126685687,1.19031507,841.19,840.02,1.18631226]
[1766126685884,0.20699439,840.79,840.02,1.18631226]
[1766126686288,8.87046223,840.8,840.07,1.18631226]
[1766126686484,8.87046223,840.8,840.06,1.18631226]
[1766126687487,0.20701532,840.79,840.05,1.18631226]
[1766126688588,0.20701532,840.79,840.04,1.18631226]
[1766126689390,0.20701532,840.79,840.03,1.18631226]
[1766126690386,0.20701532,840.79,840.02,1.18631226]
[1766126691288,0.20701532,840.79,840.01,1.18631226]
[1766126692392,0.20701532,840.79,840.0,1.18631226]
[1766126693393,0.20701532,840.79,840.02,1.18631226]
[1766126693689,0.20701532,840.79,840.03,1.18631226]
[1766126695396,0.20701532,840.79,840.02,1.18631226]
[1766126696397,0.20701532,840.79,840.01,1.18631226]
[1766126698393,0.20701532,840.79,840.0,1.18631226]
[1766126698797,0.20701532,840.79,839.95,1.18631226]
[1766126699601,0.20701532,840.79,839.89,1.18631226]
[1766126702396,0.20701532,840.79,839.82,1.18631226]
[1766126702600,0.20701532,840.79,839.77,2.976]
[1766126702601,0.20701532,840.79,839.79,1.18631226]
[1766126702801,0.20701532,840.79,839.77,2.976]
[1766126712005,0.20701532,840.79,839.77,4.15591625]
[1766126712209,0.20701532,840.79,839.78,1.17991625]
[1766126713908,0.20701532,840.79,839.81,1.17991625]
[1766126714508,0.20701532,840.79,839.82,1.17991625]
[1766126714809,0.20701532,840.79,839.89,1.17991625]
[1766126716308,0.20701532,840.79,839.9,1.17991625]
[1766126717107,0.20701532,840.79,839.89,1.17991625]
[1766126717306,0.20701532,840.79,839.88,1.17991625]
[1766126717507,0.20701532,840.79,839.81,1.17991625]
[1766126718112,0.20701532,840.79,839.82,1.17991625]
[1766126718313,0.20701532,840.79,839.77,4.15591625]
[1766126719614,0.20701532,840.79,839.77,1.17991625]
[1766126721218,0.20701532,840.79,839.78,1.17991625]
[1766126721511,0.20701532,840.79,839.78,14.34755163]
[1766126722919,0.20701532,840.79,839.79,2.263]
[1766126724416,0.20701532,840.79,839.79,3.44291625]
[1766126724720,0.20701532,840.79,839.84,1.17991625]
[1766126724920,0.20701532,840.79,839.85,1.17991625]
[1766126726522,0.20701532,840.79,839.86,1.17991625]
[1766126726718,0.20701532,840.79,839.82,1.17991625]
[1766126727318,0.20701532,840.79,839.79,2.263]
[1766126730525,0.20701532,840.79,839.79,3.44291625]
[1766126731324,0.20701532,840.79,839.8,1.17991625]
[1766126731827,0.20701532,840.79,839.79,3.44291625]
[1766126732127,0.20701532,840.79,839.79,2.263]
[1766126739032,0.20701532,840.79,839.78,13.16763538]
[1766126740032,1.39791554,840.79,839.78,13.16763538]
[1766126742733,1.39791554,840.79,839.79,3.377]
[1766126743229,0.20701532,840.79,839.79,3.377]
[1766126754241,1.39783245,840.79,839.79,3.377]
[1766126754645,2.2847097,840.79,839.79,3.377]
[1766126754845,1.19081713,840.78,839.79,3.377]
[1766126757345,2.07769438,840.78,839.79,3.377]
[1766126757543,1.19081713,840.77,839.79,3.377]
[1766126758443,2.07769438,840.77,839.79,3.377]
[1766126758642,1.19081713,840.76,839.79,3.377]
[1766126759544,1.19081713,840.75,839.79,3.377]
[1766126759748,1.19081713,840.74,839.79,3.377]
[1766126759947,1.19081713,840.73,839.79,3.377]
[1766126760143,1.19081713,840.72,839.79,3.377]
[1766126760352,1.19081713,840.71,839.79,3.377]
[1766126760644,2.07769438,840.7,839.79,3.377]
[1766126760849,1.19081713,840.69,839.79,3.377]
[1766126762151,0.88687725,840.66,839.79,3.377]
[1766126762351,1.19081713,840.65,839.79,3.377]
[1766126762650,1.19081713,840.64,839.79,3.377]
[1766126762856,1.19081713,840.63,839.79,3.377]
[1766126763154,1.19081713,840.62,839.79,3.377]
[1766126763355,0.88687725,840.68,839.79,3.377]
[1766126763550,1.19110637,840.67,839.79,3.377]
[1766126764750,1.19110637,840.66,839.79,3.377]
[1766126765049,0.88687725,840.69,839.79,3.377]
[1766126765050,1.19110637,840.65,839.79,3.377]
[1766126765254,1.19110637,840.64,839.79,3.377]
[1766126765449,0.88687725,840.69,839.79,3.377]
[1766126765654,1.1911065,840.68,839.79,3.377]
[1766126766354,1.1911065,840.67,839.79,3.377]
[1766126766554,1.1911065,840.66,839.79,3.377]
[1766126766755,1.1911065,840.65,839.79,3.377]
[1766126767055,1.1911065,840.64,839.79,3.377]
[1766126767255,0.88845133,840.7,839.79,3.377]
[1766126767552,1.1911065,840.69,839.79,3.377]
[1766126768554,1.1911065,840.68,839.79,3.377]
[1766126768752,1.1911065,840.67,839.79,3.377]
[1766126769052,1.1911065,840.66,839.79,3.377]
[1766126769256,1.1911065,840.65,839.79,3.377]
[1766126769457,1.1911065,840.64,839.79,3.377]
[1766126769652,0.88845133,840.69,839.79,3.377]
[1766126769851,1.19113238,840.68,839.79,3.377]
[1766126770151,0.88845133,840.6,839.79,3.377]
[1766126770356,0.88845133,840.54,839.79,3.377]
[1766126770653,1.19113238,840.53,839.79,3.377]
[1766126770857,1.19113238,840.53,839.2,57.04652234]
[1766126771257,1.19113238,840.53,839.2,55.86660609]
[1766126771457,1.19113238,840.52,839.2,55.86660609]
[1766126771657,1.19113238,840.51,839.2,55.86660609]
[1766126771853,1.19113238,840.5,839.2,55.86660609]
[1766126772054,0.8879452,840.55,839.2,55.86660609]
[1766126772258,1.19135814,840.54,839.2,55.86660609]
[1766126772459,1.19135814,840.53,839.2,55.86660609]
[1766126772658,1.19135814,840.52,839.2,55.86660609]
[1766126772858,1.19135814,840.51,839.2,55.86660609]
[1766126773058,0.8879452,840.56,839.2,55.86660609]
[1766126773355,1.19135823,840.55,839.2,55.86660609]
[1766126773658,1.19135823,840.54,839.2,55.86660609]
[1766126773854,1.19135823,840.53,839.2,55.86660609]
[1766126774058,1.19135823,840.52,839.2,55.86660609]
[1766126774258,0.8879452,840.57,839.21,3.411]
[1766126774556,1.19135814,840.56,839.21,3.411]
[1766126775460,1.19135814,840.55,839.21,16.50533953]
[1766126775755,1.19135814,840.54,839.21,16.50533953]
[1766126775956,1.19135814,840.53,839.21,16.50533953]
[1766126776155,0.88747593,840.57,839.21,16.50533953]
[1766126776357,1.19135832,840.56,839.21,16.50533953]
[1766126776559,1.19135832,840.55,839.21,16.50533953]
[1766126776856,1.19135832,840.54,839.21,16.50533953]
[1766126777058,0.20701532,840.79,839.21,16.50533953]
[1766126777059,1.19135832,840.53,839.21,16.50533953]
[1766126777256,1.19135832,840.52,839.21,16.50533953]
[1766126777556,0.88747593,840.57,839.21,16.50533953]
[1766126777754,1.19136498,840.56,839.21,16.50533953]
[1766126777958,0.88747593,840.55,839.21,16.50533953]
[1766126778260,1.19136498,840.54,839.21,16.50533953]
[1766126778458,0.88747593,840.5,839.21,16.50533953]
[1766126778659,1.19136498,840.49,839.21,16.50533953]
[1766126779557,1.19136498,840.48,839.21,16.50533953]
[1766126779760,1.19136498,840.47,839.21,16.50533953]
[1766126779961,1.19136498,840.46,839.21,16.50533953]
[1766126780158,0.88747593,840.51,839.21,16.50533953]
[1766126780457,1.1914549,840.5,839.21,16.50533953]
[1766126781462,1.1914549,840.49,839.21,16.50533953]
[1766126781761,1.1914549,840.48,839.21,16.50533953]
[1766126781958,1.1914549,840.47,839.21,16.50533953]
[1766126782163,0.88747593,840.51,839.21,16.50533953]
[1766126782363,1.1914549,840.5,839.21,16.50533953]
[1766126782659,1.1914549,840.49,839.21,16.50533953]
[1766126782864,1.1914549,840.48,839.21,16.50533953]
[1766126783063,0.88747593,840.52,839.21,16.50533953]
[1766126783363,1.1914549,840.51,839.21,16.50533953]
[1766126786263,2.07893083,840.51,839.21,13.09433953]
[1766126786462,1.1914549,840.5,839.21,13.09433953]
[1766126786961,0.88747593,840.51,839.21,13.09433953]
[1766126787166,0.88747593,840.54,839.21,13.09433953]
[1766126787363,1.19140316,840.53,839.21,13.09433953]
[1766126788365,2.07887909,840.53,839.21,13.09433953]
[1766126788561,1.1914027,840.52,839.21,13.09433953]
[1766126788963,0.88747593,840.62,839.21,14.27425578]
[1766126789162,1.19128735,840.61,839.21,14.27425578]
[1766126789361,2.07876328,840.61,839.22,1.17991625]
[1766126789562,0.88747593,840.62,839.23,1.17991625]
[1766126789763,0.88747593,840.71,839.31,1.17991625]
[1766126789968,1.19115255,840.7,839.31,1.17991625]
[1766126790265,1.19115255,840.7,839.33,1.17991625]
[1766126790463,0.88747593,840.77,839.38,1.17991625]
[1766126790668,1.1910629,840.76,839.38,1.17991625]
[1766126791363,2.07853883,840.76,839.39,1.17991625]
[1766126791568,1.1910629,840.75,839.39,1.17991625]
[1766126792366,0.20701532,840.79,839.43,1.17991625]
[1766126792670,1.39801186,840.79,839.43,1.17991625]
[1766126792867,0.20701532,840.79,839.49,1.17991625]
[1766126795368,0.20701532,840.79,839.5,1.17991625]
[1766126795668,0.20701532,840.79,839.49,1.17991625]
[1766126796174,0.20701532,840.79,839.5,1.17991625]
[1766126805284,1.39793526,840.79,839.51,1.17991625]
[1766126806380,0.20701532,840.79,839.51,1.17991625]
[1766126806684,1.39793513,840.79,839.51,1.17991625]
[1766126807888,0.20701532,840.79,839.51,1.17991625]
[1766126809287,0.20701532,840.79,839.36,1.76987438]
[1766126809288,0.20701532,840.79,839.52,1.17991625]
[1766126810888,0.20701532,840.79,839.51,1.17991625]
[1766126811086,0.20701532,840.79,839.5,1.17991625]
[1766126811386,0.88747593,840.71,839.42,1.17991625]
[1766126811683,1.19091981,840.7,839.41,1.17991625]
[1766126812288,1.19091981,840.7,839.42,1.17991625]
[1766126813185,2.07839574,840.7,839.42,1.17991625]
[1766126813387,1.19091981,840.69,839.42,1.17991625]
[1766126813890,0.88747593,840.65,839.37,1.17991625]
[1766126814089,1.19091981,840.64,839.37,1.17991625]
[1766126814286,1.19091981,840.64,839.38,1.17991625]
[1766126816386,2.07839574,840.64,839.38,1.17991625]
[1766126816592,1.19091981,840.63,839.38,1.17991625]
[1766126820495,1.19091981,840.63,839.39,1.17991625]
[1766126820696,0.88747593,840.72,839.46,1.17991625]
[1766126820996,0.88747593,840.72,839.23,2.25]
[1766126820997,1.19102867,840.71,839.47,1.17991625]
[1766126821196,1.19102867,840.7,839.47,1.17991625]
[1766126821397,1.19102867,840.69,839.47,1.17991625]
[1766126821595,0.88747593,840.73,839.47,1.17991625]
[1766126821793,1.191022,840.72,839.47,1.17991625]
[1766126823699,0.88747593,840.77,839.51,1.17991625]
[1766126823892,1.19095746,840.76,839.51,1.17991625]
[1766126824296,0.20701532,840.79,839.55,1.17991625]
[1766126824993,0.20701532,840.79,839.54,1.17991625]
[1766126825195,0.20701532,840.79,839.55,1.17991625]
[1766126827200,0.20701532,840.79,839.54,1.17991625]
[1766126829396,0.20701532,840.79,839.56,1.17991625]
[1766126833299,0.20701532,840.79,839.57,1.17991625]
[1766126833905,0.88747593,840.77,839.49,1.17991625]
[1766126834105,1.19087455,840.76,839.49,1.17991625]
[1766126834305,2.07835048,840.76,839.5,1.17991625]
[1766126834501,1.19087455,840.75,839.5,1.17991625]
[1766126836207,1.19087455,840.75,839.23,2.25]
[1766126836208,2.07835048,840.75,839.51,1.17991625]
[1766126836507,1.19087455,840.74,839.51,1.17991625]
[1766126838406,2.07835048,840.74,839.52,1.17991625]
[1766126838604,1.19087455,840.73,839.52,1.17991625]
[1766126839204,2.07835048,840.73,839.53,1.17991625]
[1766126839506,1.19087455,840.72,839.54,1.17991625]
[1766126839710,0.88747593,840.74,839.54,1.17991625]
[1766126839905,1.19096426,840.73,839.54,1.17991625]
[1766126840209,0.88747593,840.72,839.56,1.17991625]
[1766126840407,1.19096426,840.71,839.56,1.17991625]
[1766126840909,0.88747593,840.74,839.56,1.17991625]
[1766126841111,1.19093865,840.73,839.6,1.17991625]
[1766126841413,0.88747593,840.76,839.61,1.17991625]
[1766126841707,1.19090007,840.75,839.61,1.17991625]
[1766126842414,0.88747593,840.74,839.64,1.17991625]
[1766126842614,0.88747593,840.78,839.67,1.17991625]
[1766126843314,0.88747593,840.76,839.69,1.17991625]
[1766126844319,0.88747593,840.76,839.21,13.09433953]
[1766126844320,0.88747593,840.74,839.72,1.17991625]
[1766126844618,0.88747593,840.75,839.72,1.17991625]
[1766126847120,1.19082908,840.74,839.72,1.17991625]
[1766126847922,1.19082908,840.74,839.73,2.554]
[1766126849124,1.19082862,840.73,839.73,2.554]
[1766126849319,1.19082862,840.72,839.73,2.554]
[1766126849522,1.19082862,840.71,839.73,2.554]
[1766126849723,0.88747593,840.75,839.73,2.554]
[1766126850023,1.19082862,840.74,839.73,2.554]
[1766126850222,1.19082862,840.74,839.73,3.73391625]
[1766126850422,1.19082862,840.73,839.73,3.73391625]
[1766126850617,1.19082862,840.72,839.73,3.73391625]
[1766126850823,0.88747593,840.76,839.73,3.73391625]